fUSD/lending_fUSD_20250217
["ID","MTS","AMOUNT","RATE_DAILY","PERIOD"]
[353410494,1739818246353,-532.61,0.00014027,2]
[353410496,1739818246363,-500.0,0.00014027,2]
[353410498,1739818246372,-500.0,0.00014027,2]
[353410500,1739818246382,-1148.98,0.00014027,2]
[353410502,1739818246391,-500.0,0.00014027,2]
[353410504,1739818246401,-654.91,0.00014027,2]
[353410506,1739818246410,-500.0,0.00014027,2]
[353410508,1739818246421,-670.94,0.00014027,2]
[353410510,1739818246431,-500.0,0.00014027,2]
[353410512,1739818246440,-986.68,0.00014027,2]
[353410514,1739818246450,-709.94,0.00014027,2]
[353410516,1739818246462,-506.3757168,0.00014027,2]
[353410518,1739818246473,-627.05,0.00014027,2]
[353410520,1739818246483,-616.94,0.00014027,2]
[353410522,1739818246494,-500.0,0.00014027,2]
[353410525,1739818246507,-500.0,0.00014027,2]
[353410526,1739818246519,-500.0,0.00014027,2]
[353410528,1739818246530,-500.0,0.00014027,2]
[353410530,1739818246540,-510.34,0.00014027,2]
[353410532,1739818246550,-962.35,0.00014027,2]
[353410534,1739818246559,-500.0,0.00014027,2]
[353410536,1739818246569,-763.76,0.00014027,2]
[353410538,1739818246578,-500.0,0.00014027,2]
[353410540,1739818246588,-917.81,0.00014027,2]
[353410542,1739818246598,-864.55,0.00014027,2]
[353410544,1739818246607,-625.13,0.00014027,2]
[353410546,1739818246616,-583.43,0.00014027,2]
[353410548,1739818246625,-500.0,0.00014027,2]
[353410550,1739818246637,-532.14,0.00014027,2]
[353410552,1739818246648,-895.3,0.00014027,2]
[353410554,1739818246658,-500.0,0.00014027,2]
[353410556,1739818246668,-799.84,0.00014027,2]
[353410558,1739818246678,-500.0,0.00014027,2]
[353410560,1739818246687,-500.0,0.00014027,2]
[353410562,1739818246698,-500.0,0.00014027,2]
[353410565,1739818246708,-500.0,0.00014027,2]
[353410566,1739818246718,-500.0,0.00014027,2]
[353410568,1739818246727,-500.0,0.00014027,2]
[353410570,1739818246737,-500.0,0.00014027,2]
[353410573,1739818246748,-500.0,0.00014027,2]
[353410575,1739818246758,-577.87,0.00014027,2]
[353410577,1739818246767,-500.0,0.00014027,2]
[353410579,1739818246776,-500.0,0.00014027,2]
[353410580,1739818246785,-621.72518307,0.00014027,2]
[353410582,1739818246794,-500.0,0.00014027,2]
[353410584,1739818246803,-500.0,0.00014027,2]
[353410586,1739818246812,-400.0,0.00014027,2]
[353410588,1739818246821,-1059.47,0.00014027,2]
[353410590,1739818246830,-500.0,0.00014027,2]
[353410592,1739818246839,-500.0,0.00014027,2]
[353410594,1739818246848,-500.0,0.00014027,2]
[353410596,1739818246858,-5713.77464163,0.00014029,2]
[353410598,1739818246867,-161.52898053,0.00014038,2]
[353410600,1739818246877,-151.47568157,0.00014038,2]
[353410602,1739818246886,-500.0,0.00014038,2]
[353410604,1739818246896,-500.0,0.00014038,2]
[353410606,1739818246905,-153.85710225,0.00014042,2]
[353410608,1739818246915,-152.36264843,0.00014042,2]
[353410610,1739818246924,-150.0,0.00014059,2]
[353410612,1739818246933,-5005.97755,0.0001406,2]
[353410614,1739818246943,-150.0,0.00014065,2]
[353410616,1739818246952,-900.0,0.00014078,2]
[353410618,1739818246961,-150.0,0.00014083,2]
[353410620,1739818246970,-648.63,0.00014108,2]
[353410622,1739818246979,-877.51,0.00014108,2]
[353410624,1739818246988,-835.55,0.00014108,2]
[353410626,1739818246998,-500.0,0.00014108,2]
[353410628,1739818247007,-500.0,0.00014108,2]
[353410630,1739818247017,-500.0,0.00014108,2]
[353410632,1739818247026,-267.133275,0.00014108,2]
[353410634,1739818247036,-500.0,0.00014108,2]
[353410636,1739818247046,-500.0,0.00014108,2]
[353410638,1739818247055,-511.66,0.00014108,2]
[353410640,1739818247065,-500.0,0.00014108,2]
[353410642,1739818247074,-237.263123,0.00014108,2]
[353410644,1739818247085,-733.16,0.00014108,2]
[353410646,1739818247095,-509.44,0.00014108,2]
[353410648,1739818247104,-513.78,0.00014108,2]
[353410650,1739818247114,-695.75,0.00014108,2]
[353410652,1739818247124,-2251.93,0.00014108,2]
[353410654,1739818247135,-500.0,0.00014108,2]
[353410656,1739818247144,-159.273776,0.00014108,2]
[353410658,1739818247153,-533.48,0.00014108,2]
[353410660,1739818247162,-687.19,0.00014108,2]
[353410662,1739818247171,-556.4,0.00014108,2]
[353410663,1739818247182,-703.47,0.00014108,2]
[353410665,1739818247191,-500.0,0.00014108,2]
[353410668,1739818247202,-1124.34,0.00014108,2]
[353410670,1739818247212,-733.4,0.00014108,2]
[353410672,1739818247223,-520.15,0.00014108,2]
[353410674,1739818247233,-860.18,0.00014108,2]
[353410676,1739818247243,-500.0,0.00014108,2]
[353410678,1739818247252,-159.273772,0.00014108,2]
[353410680,1739818247262,-787.46,0.00014108,2]
[353410682,1739818247272,-500.0,0.00014109,2]
[353410684,1739818247281,-500.0,0.00014109,2]
[353410686,1739818247291,-503.96302661,0.00014109,2]
[353410688,1739818247301,-574.36,0.00014109,2]
[353410690,1739818247310,-500.0,0.00014109,2]
[353410692,1739818247320,-182.91146555,0.00014109,2]
[353410694,1739818247329,-500.0,0.00014109,2]
[353410695,1739818247339,-500.0,0.00014109,2]
[353410697,1739818247348,-500.0,0.00014109,2]
[353410700,1739818247358,-500.0,0.00014109,2]
[353410701,1739818247367,-500.0,0.00014109,2]
[353410702,1739818247378,-500.0,0.00014109,2]
[353410703,1739818247388,-500.0,0.00014109,2]
[353410704,1739818247397,-500.0,0.00014109,2]
[353410705,1739818247407,-500.0,0.00014109,2]
[353410706,1739818247418,-500.0,0.00014109,2]
[353410707,1739818247431,-500.0,0.00014109,2]
[353410708,1739818247441,-501.05,0.00014109,2]
[353410710,1739818247451,-500.0,0.00014109,2]
[353410712,1739818247462,-500.0,0.00014109,2]
[353410714,1739818247471,-500.0,0.00014109,2]
[353410716,1739818247482,-500.0,0.00014109,2]
[353410718,1739818247492,-244.64,0.00014109,2]
[353410720,1739818247502,-500.0,0.00014109,2]
[353410722,1739818247512,-500.0,0.00014109,2]
[353410724,1739818247522,-500.0,0.00014109,2]
[353410726,1739818247532,-500.0,0.00014109,2]
[353410728,1739818247543,-500.0,0.00014109,2]
[353410730,1739818247553,-500.0,0.00014109,2]
[353410732,1739818247563,-500.0,0.00014109,2]
[353410734,1739818247572,-500.0,0.00014109,2]
[353410735,1739818247581,-513.25,0.00014109,2]
[353410736,1739818247591,-500.0,0.00014109,2]
[353410737,1739818247601,-500.0,0.00014109,2]
[353410738,1739818247610,-500.0,0.00014109,2]
[353410739,1739818247619,-548.83,0.00014109,2]
[353410740,1739818247630,-500.0,0.00014109,2]
[353410741,1739818247639,-500.0,0.00014109,2]
[353410742,1739818247649,-610.23,0.00014109,2]
[353410743,1739818247658,-500.0,0.00014109,2]
[353410744,1739818247667,-500.0,0.00014109,2]
[353410745,1739818247677,-1487.6,0.00014109,2]
[353410746,1739818247686,-500.0,0.00014109,2]
[353410747,1739818247697,-500.0,0.00014109,2]
[353410749,1739818247707,-541.8,0.00014109,2]
[353410751,1739818247717,-678.49,0.00014109,2]
[353410753,1739818247727,-620.69,0.00014109,2]
[353410755,1739818247738,-500.0,0.00014109,2]
[353410757,1739818247749,-809.39,0.00014109,2]
[353410758,1739818247758,-500.0,0.00014109,2]
[353410760,1739818247768,-563.77,0.00014109,2]
[353410762,1739818247779,-500.0,0.00014109,2]
[353410764,1739818247790,-584.35,0.00014109,2]
[353410766,1739818247800,-500.0,0.00014109,2]
[353410768,1739818247811,-531.61,0.00014109,2]
[353410770,1739818247821,-1007.19,0.00014109,2]
[353410772,1739818247831,-959.88,0.00014109,2]
[353410774,1739818247841,-500.0,0.00014109,2]
[353410776,1739818247851,-500.0,0.00014109,2]
[353410778,1739818247861,-500.0,0.00014109,2]
[353410780,1739818247870,-596.38,0.00014109,2]
[353410782,1739818247881,-532.61,0.00014109,2]
[353410784,1739818247890,-500.0,0.00014109,2]
[353410786,1739818247900,-500.0,0.00014109,2]
[353410788,1739818247909,-1148.98,0.00014109,2]
[353410790,1739818247918,-500.0,0.00014109,2]
[353410792,1739818247928,-654.91,0.00014109,2]
[353410794,1739818247937,-500.0,0.00014109,2]
[353410796,1739818247947,-670.94,0.00014109,2]
[353410798,1739818247956,-500.0,0.00014109,2]
[353410800,1739818247967,-986.68,0.00014109,2]
[353410802,1739818247977,-709.94,0.00014109,2]
[353410804,1739818247987,-627.05,0.00014109,2]
[353410806,1739818247997,-616.94,0.00014109,2]
[353410808,1739818248006,-500.0,0.00014109,2]
[353410810,1739818248016,-587.01934782,0.00014109,2]
[353410812,1739818248026,-414.7858497,0.00014109,2]
[353410814,1739818248036,-500.0,0.00014109,2]
[353410816,1739818248046,-510.34,0.00014109,2]
[353410818,1739818248056,-962.35,0.00014109,2]
[353410820,1739818248067,-500.0,0.00014109,2]
[353410822,1739818248077,-763.76,0.00014109,2]
[353410824,1739818248088,-500.0,0.00014109,2]
[353410826,1739818248099,-917.81,0.00014109,2]
[353410828,1739818248109,-864.55,0.00014109,2]
[353410830,1739818248119,-625.13,0.00014109,2]
[353410831,1739818248130,-583.43,0.00014109,2]
[353410834,1739818248140,-500.0,0.00014109,2]
[353410836,1739818248152,-532.14,0.00014109,2]
[353410838,1739818248162,-895.3,0.00014109,2]
[353410840,1739818248172,-538.76,0.00014109,2]
[353410842,1739818248183,-799.84,0.00014109,2]
[353410844,1739818248192,-500.0,0.00014109,2]
[353410845,1739818248202,-500.0,0.00014109,2]
[353410847,1739818248211,-500.0,0.00014109,2]
[353410849,1739818248221,-500.0,0.00014109,2]
[353410851,1739818248231,-500.0,0.00014109,2]
[353410853,1739818248241,-574.62870638,0.00014109,2]
[353410855,1739818248252,-500.0,0.00014109,2]
[353410857,1739818248262,-500.0,0.00014109,2]
[353410859,1739818248273,-577.87,0.00014109,2]
[353410861,1739818248283,-500.0,0.00014109,2]
[353410863,1739818248292,-500.0,0.00014109,2]
[353410865,1739818248303,-500.0,0.00014109,2]
[353410867,1739818248313,-500.0,0.00014109,2]
[353410869,1739818248322,-1059.47,0.00014109,2]
[353410871,1739818248332,-500.0,0.00014109,2]
[353410873,1739818248341,-500.0,0.00014109,2]
[353410875,1739818248352,-500.0,0.00014109,2]
[353410877,1739818248362,-150.0,0.00014133,2]
[353410879,1739818248373,-150.0,0.00014143,2]
[353410881,1739818248386,-5713.77464163,0.00014172,2]
[353410883,1739818248397,-150.0,0.00014182,2]
[353410885,1739818248408,-648.63,0.0001419,2]
[353410887,1739818248420,-877.51,0.0001419,2]
[353410889,1739818248433,-835.55,0.0001419,2]
[353410891,1739818248444,-500.0,0.0001419,2]
[353410893,1739818248455,-500.0,0.0001419,2]
[353410895,1739818248468,-500.0,0.0001419,2]
[353410897,1739818248479,-267.133275,0.0001419,2]
[353410899,1739818248491,-500.0,0.0001419,2]
[353410901,1739818248501,-500.0,0.0001419,2]
[353410903,1739818248512,-511.66,0.0001419,2]
[353410905,1739818248521,-500.0,0.0001419,2]
[353410907,1739818248532,-237.263123,0.0001419,2]
[353410909,1739818248542,-733.16,0.0001419,2]
[353410911,1739818248553,-157.109846,0.0001419,2]
[353410913,1739818248565,-509.44,0.0001419,2]
[353410915,1739818248576,-513.78,0.0001419,2]
[353410917,1739818248589,-695.75,0.0001419,2]
[353410919,1739818248599,-2251.93,0.0001419,2]
[353410921,1739818248611,-500.0,0.0001419,2]
[353410923,1739818248622,-533.48,0.0001419,2]
[353410925,1739818248635,-687.19,0.0001419,2]
[353410928,1739818248647,-556.4,0.0001419,2]
[353410929,1739818248659,-703.47,0.0001419,2]
[353410931,1739818248669,-1000.0,0.0001419,2]
[353410933,1739818248680,-1000.0,0.0001419,2]
[353410935,1739818248691,-1000.0,0.0001419,2]
[353410937,1739818248703,-500.0,0.0001419,2]
[353410939,1739818248713,-1124.34,0.0001419,2]
[353410941,1739818248724,-733.4,0.0001419,2]
[353410942,1739818248734,-520.15,0.0001419,2]
[353410943,1739818248744,-860.18,0.0001419,2]
[353410944,1739818248755,-500.0,0.0001419,2]
[353410945,1739818248766,-787.46,0.0001419,2]
[353410946,1739818248776,-492.81,0.00014191,2]
[353410947,1739818248787,-500.0,0.00014191,2]
[353410948,1739818248798,-500.0,0.00014191,2]
[353410950,1739818248810,-574.36,0.00014191,2]
[353410952,1739818248820,-500.0,0.00014191,2]
[353410954,1739818248830,-500.0,0.00014191,2]
[353410956,1739818248841,-500.0,0.00014191,2]
[353410957,1739818248852,-514.58604896,0.00014191,2]
[353410959,1739818248863,-500.0,0.00014191,2]
[353410960,1739818248873,-500.0,0.00014191,2]
[353410962,1739818248888,-500.0,0.00014191,2]
[353410965,1739818248900,-500.0,0.00014191,2]
[353410967,1739818248911,-500.0,0.00014191,2]
[353410968,1739818248922,-234.56242401,0.00014191,2]
[353410970,1739818248932,-500.0,0.00014191,2]
[353410972,1739818248943,-500.0,0.00014191,2]
[353410975,1739818248954,-501.05,0.00014191,2]
[353410976,1739818248967,-500.0,0.00014191,2]
[353410977,1739818248979,-500.0,0.00014191,2]
[353410978,1739818248990,-500.0,0.00014191,2]
[353410979,1739818249000,-500.0,0.00014191,2]
[353410980,1739818249012,-500.0,0.00014191,2]
[353410981,1739818249022,-500.0,0.00014191,2]
[353410982,1739818249033,-555.03,0.00014191,2]
[353410983,1739818249044,-500.0,0.00014191,2]
[353410984,1739818249055,-500.0,0.00014191,2]
[353410985,1739818249066,-500.0,0.00014191,2]
[353410986,1739818249077,-500.0,0.00014191,2]
[353410987,1739818249088,-500.0,0.00014191,2]
[353410988,1739818249099,-513.25,0.00014191,2]
[353410989,1739818249111,-500.0,0.00014191,2]
[353410990,1739818249122,-335.23,0.00014191,2]
[353410991,1739818249135,-500.0,0.00014191,2]
[353410992,1739818249146,-548.83,0.00014191,2]
[353410993,1739818249157,-500.0,0.00014191,2]
[353410995,1739818249168,-500.0,0.00014191,2]
[353410996,1739818249178,-610.23,0.00014191,2]
[353410999,1739818249189,-500.0,0.00014191,2]
[353411001,1739818249200,-500.0,0.00014191,2]
[353411003,1739818249210,-1487.6,0.00014191,2]
[353411005,1739818249220,-492.4287836,0.00014191,2]
[353411007,1739818249231,-500.0,0.00014191,2]
[353411008,1739818249241,-541.8,0.00014191,2]
[353411011,1739818249252,-678.49,0.00014191,2]
[353411013,1739818249263,-620.69,0.00014191,2]
[353411015,1739818249274,-500.0,0.00014191,2]
[353411017,1739818249284,-809.39,0.00014191,2]
[353411019,1739818249295,-500.0,0.00014191,2]
[353411020,1739818249305,-563.77,0.00014191,2]
[353411023,1739818249316,-500.0,0.00014191,2]
[353411024,1739818249325,-584.35,0.00014191,2]
[353411026,1739818249336,-500.0,0.00014191,2]
[353411029,1739818249347,-531.61,0.00014191,2]
[353411030,1739818249358,-1007.19,0.00014191,2]
[353411032,1739818249369,-959.88,0.00014191,2]
[353411035,1739818249382,-500.0,0.00014191,2]
[353411037,1739818249397,-500.0,0.00014191,2]
[353411039,1739818249407,-500.0,0.00014191,2]
[353411041,1739818249422,-596.38,0.00014191,2]
[353411043,1739818249432,-532.61,0.00014191,2]
[353411045,1739818249443,-500.0,0.00014191,2]
[353411047,1739818249454,-500.0,0.00014191,2]
[353411049,1739818249464,-1148.98,0.00014191,2]
[353411051,1739818249475,-500.0,0.00014191,2]
[353411053,1739818249486,-654.91,0.00014191,2]
[353411055,1739818249496,-500.0,0.00014191,2]
[353411057,1739818249507,-670.94,0.00014191,2]
[353411059,1739818249517,-500.0,0.00014191,2]
[353411061,1739818249527,-986.68,0.00014191,2]
[353411063,1739818249537,-709.94,0.00014191,2]
[353411065,1739818249547,-627.05,0.00014191,2]
[353411067,1739818249557,-616.94,0.00014191,2]
[353411069,1739818249567,-500.0,0.00014191,2]
[353411071,1739818249576,-500.0,0.00014191,2]
[353411073,1739818249587,-510.34,0.00014191,2]
[353411075,1739818249597,-962.35,0.00014191,2]
[353411077,1739818249606,-500.0,0.00014191,2]
[353411079,1739818249615,-763.76,0.00014191,2]
[353411081,1739818249625,-500.0,0.00014191,2]
[353411083,1739818249637,-917.81,0.00014191,2]
[353411085,1739818249646,-864.55,0.00014191,2]
[353411087,1739818249656,-625.13,0.00014191,2]
[353411089,1739818249665,-583.43,0.00014191,2]
[353411092,1739818249675,-500.0,0.00014191,2]
[353411093,1739818249684,-532.14,0.00014191,2]
[353411095,1739818249693,-895.3,0.00014191,2]
[353411097,1739818249703,-799.84,0.00014191,2]
[353411099,1739818249712,-500.0,0.00014191,2]
[353411101,1739818249722,-500.0,0.00014191,2]
[353411103,1739818249731,-500.0,0.00014191,2]
[353411106,1739818249742,-500.0,0.00014191,2]
[353411108,1739818249751,-500.0,0.00014191,2]
[353411110,1739818249761,-500.0,0.00014191,2]
[353411112,1739818249772,-500.0,0.00014191,2]
[353411114,1739818249782,-577.87,0.00014191,2]
[353411116,1739818249792,-500.0,0.00014191,2]
[353411118,1739818249802,-500.0,0.00014191,2]
[353411120,1739818249811,-500.0,0.00014191,2]
[353411122,1739818249823,-500.0,0.00014191,2]
[353411124,1739818249834,-1059.47,0.00014191,2]
[353411126,1739818249844,-500.0,0.00014191,2]
[353411128,1739818249854,-500.0,0.00014191,2]
[353411130,1739818249863,-500.0,0.00014191,2]
[353411132,1739818249874,-150.0,0.000142,2]
[353411134,1739818249885,-648.63,0.00014272,2]
[353411136,1739818249895,-877.51,0.00014272,2]
[353411138,1739818249904,-835.55,0.00014272,2]
[353411140,1739818249913,-500.0,0.00014272,2]
[353411142,1739818249923,-500.0,0.00014272,2]
[353411144,1739818249933,-500.0,0.00014272,2]
[353411146,1739818249943,-267.133275,0.00014272,2]
[353411148,1739818249953,-500.0,0.00014272,2]
[353411150,1739818249964,-500.0,0.00014272,2]
[353411152,1739818249975,-511.66,0.00014272,2]
[353411154,1739818249984,-500.0,0.00014272,2]
[353411156,1739818249994,-237.263123,0.00014272,2]
[353411158,1739818250004,-733.16,0.00014272,2]
[353411160,1739818250014,-509.44,0.00014272,2]
[353411163,1739818250024,-513.78,0.00014272,2]
[353411165,1739818250034,-695.75,0.00014272,2]
[353411167,1739818250044,-2251.93,0.00014272,2]
[353411168,1739818250053,-500.0,0.00014272,2]
[353411169,1739818250063,-533.48,0.00014272,2]
[353411170,1739818250073,-687.19,0.00014272,2]
[353411171,1739818250082,-556.4,0.00014272,2]
[353411172,1739818250091,-703.47,0.00014272,2]
[353411173,1739818250101,-500.0,0.00014272,2]
[353411174,1739818250110,-1124.34,0.00014272,2]
[353411175,1739818250120,-733.4,0.00014272,2]
[353411177,1739818250132,-520.15,0.00014272,2]
[353411179,1739818250142,-860.18,0.00014272,2]
[353411181,1739818250151,-500.0,0.00014272,2]
[353411183,1739818250161,-787.46,0.00014272,2]
[353411185,1739818250171,-303.41,0.00014273,2]
[353411187,1739818250180,-500.0,0.00014273,2]
[353411189,1739818250190,-574.36,0.00014273,2]
[353411191,1739818250200,-500.0,0.00014273,2]
[353411193,1739818250209,-500.0,0.00014273,2]
[353411195,1739818250220,-500.0,0.00014273,2]
[353411197,1739818250229,-500.0,0.00014273,2]
[353411199,1739818250239,-500.0,0.00014273,2]
[353411201,1739818250249,-500.0,0.00014273,2]
[353411203,1739818250259,-500.0,0.00014273,2]
[353411205,1739818250268,-500.0,0.00014273,2]
[353411207,1739818250278,-500.0,0.00014273,2]
[353411209,1739818250288,-500.0,0.00014273,2]
[353411211,1739818250297,-501.05,0.00014273,2]
[353411213,1739818250307,-500.0,0.00014273,2]
[353411215,1739818250316,-500.0,0.00014273,2]
[353411217,1739818250325,-500.0,0.00014273,2]
[353411219,1739818250335,-500.0,0.00014273,2]
[353411221,1739818250344,-500.0,0.00014273,2]
[353411223,1739818250354,-500.0,0.00014273,2]
[353411225,1739818250363,-249.41,0.00014273,2]
[353411227,1739818250374,-500.0,0.00014273,2]
[353411229,1739818250386,-500.0,0.00014273,2]
[353411231,1739818250395,-500.0,0.00014273,2]
[353411233,1739818250404,-500.0,0.00014273,2]
[353411235,1739818250415,-513.25,0.00014273,2]
[353411237,1739818250428,-500.0,0.00014273,2]
[353411239,1739818250438,-500.0,0.00014273,2]
[353411241,1739818250448,-548.83,0.00014273,2]
[353411243,1739818250458,-500.0,0.00014273,2]
[353411245,1739818250469,-500.0,0.00014273,2]
[353411247,1739818250480,-610.23,0.00014273,2]
[353411249,1739818250490,-500.0,0.00014273,2]
[353411251,1739818250502,-500.0,0.00014273,2]
[353411253,1739818250512,-1487.6,0.00014273,2]
[353411255,1739818250522,-500.0,0.00014273,2]
[353411257,1739818250532,-541.8,0.00014273,2]
[353411259,1739818250542,-678.49,0.00014273,2]
[353411262,1739818250553,-620.69,0.00014273,2]
[353411264,1739818250562,-500.0,0.00014273,2]
[353411266,1739818250572,-809.39,0.00014273,2]
[353411268,1739818250583,-500.0,0.00014273,2]
[353411270,1739818250592,-563.77,0.00014273,2]
[353411272,1739818250602,-500.0,0.00014273,2]
[353411274,1739818250611,-584.35,0.00014273,2]
[353411276,1739818250621,-500.0,0.00014273,2]
[353411278,1739818250632,-531.61,0.00014273,2]
[353411280,1739818250643,-1007.19,0.00014273,2]
[353411282,1739818250652,-959.88,0.00014273,2]
[353411284,1739818250663,-500.0,0.00014273,2]
[353411286,1739818250672,-500.0,0.00014273,2]
[353411288,1739818250682,-500.0,0.00014273,2]
[353411290,1739818250692,-596.38,0.00014273,2]
[353411292,1739818250702,-532.61,0.00014273,2]
[353411294,1739818250712,-500.0,0.00014273,2]
[353411296,1739818250722,-500.0,0.00014273,2]
[353411298,1739818250731,-1148.98,0.00014273,2]
[353411320,1739818250935,-500.0,0.00014273,2]
[353411323,1739818250954,-654.91,0.00014273,2]
[353411325,1739818250964,-500.0,0.00014273,2]
[353411327,1739818250974,-670.94,0.00014273,2]
[353411329,1739818250983,-500.0,0.00014273,2]
[353411331,1739818250993,-986.68,0.00014273,2]
[353411333,1739818251004,-709.94,0.00014273,2]
[353411335,1739818251013,-627.05,0.00014273,2]
[353411337,1739818251023,-616.94,0.00014273,2]
[353411339,1739818251033,-500.0,0.00014273,2]
[353411341,1739818251043,-500.0,0.00014273,2]
[353411343,1739818251052,-510.34,0.00014273,2]
[353411345,1739818251062,-962.35,0.00014273,2]
[353411347,1739818251071,-500.0,0.00014273,2]
[353411349,1739818251081,-763.76,0.00014273,2]
[353411351,1739818251091,-500.0,0.00014273,2]
[353411353,1739818251100,-917.81,0.00014273,2]
[353411354,1739818251110,-864.55,0.00014273,2]
[353411357,1739818251120,-625.13,0.00014273,2]
[353411358,1739818251129,-583.43,0.00014273,2]
[353411361,1739818251141,-500.0,0.00014273,2]
[353411363,1739818251150,-532.14,0.00014273,2]
[353411364,1739818251160,-895.3,0.00014273,2]
[353411367,1739818251171,-799.84,0.00014273,2]
[353411369,1739818251180,-500.0,0.00014273,2]
[353411371,1739818251190,-500.0,0.00014273,2]
[353411373,1739818251199,-500.0,0.00014273,2]
[353411375,1739818251209,-500.0,0.00014273,2]
[353411377,1739818251219,-500.0,0.00014273,2]
[353411379,1739818251228,-500.0,0.00014273,2]
[353411380,1739818251238,-500.0,0.00014273,2]
[353411381,1739818251247,-577.87,0.00014273,2]
[353411382,1739818251257,-500.0,0.00014273,2]
[353411383,1739818251266,-500.0,0.00014273,2]
[353411384,1739818251276,-500.0,0.00014273,2]
[353411385,1739818251285,-500.0,0.00014273,2]
[353411386,1739818251295,-1059.47,0.00014273,2]
[353411387,1739818251305,-500.0,0.00014273,2]
[353411389,1739818251315,-500.0,0.00014273,2]
[353411391,1739818251325,-500.0,0.00014273,2]
[353411394,1739818251336,-150.0,0.00014282,2]
[353411396,1739818251347,-1953.31,0.00014293,2]
[353411397,1739818251356,-582.13903436,0.00014316,2]
[353411400,1739818251366,-5713.77464163,0.00014316,2]
[353411401,1739818251376,-150.0,0.00014336,2]
[353411403,1739818251387,-407.47863402,0.00014351,2]
[353411405,1739818251396,-2000.0,0.00014355,2]
[353411407,1739818251406,-648.63,0.00014355,2]
[353411409,1739818251416,-877.51,0.00014355,2]
[353411411,1739818251431,-835.55,0.00014355,2]
[353411414,1739818251445,-500.0,0.00014355,2]
[353411415,1739818251455,-500.0,0.00014355,2]
[353411417,1739818251465,-500.0,0.00014355,2]
[353411419,1739818251474,-500.0,0.00014355,2]
[353411421,1739818251484,-267.133275,0.00014355,2]
[353411424,1739818251495,-500.0,0.00014355,2]
[353411426,1739818251506,-511.66,0.00014355,2]
[353411427,1739818251517,-500.0,0.00014355,2]
[353411429,1739818251527,-237.263123,0.00014355,2]
[353411431,1739818251536,-733.16,0.00014355,2]
[353411433,1739818251546,-509.44,0.00014355,2]
[353411435,1739818251555,-513.78,0.00014355,2]
[353411437,1739818251565,-695.75,0.00014355,2]
[353411439,1739818251575,-2251.93,0.00014355,2]
[353411441,1739818251585,-500.0,0.00014355,2]
[353411444,1739818251595,-533.48,0.00014355,2]
[353411445,1739818251604,-687.19,0.00014355,2]
[353411447,1739818251614,-556.4,0.00014355,2]
[353411449,1739818251623,-703.47,0.00014355,2]
[353411451,1739818251633,-500.0,0.00014355,2]